Cogmind - Beta 9.4 @@@ ROGUE MODE // 2020.01.25 @ 14:00:15 Player: spruce (@macklemurr) Result: Destroyed by G-47 Trooper with Particle Gun Performance ------------- Evolutions (2) 1000 Regions Visited (5) 1000 Robots Destroyed (55) 275 Value Destroyed (965) 965 Prototype IDs (22) 440 Alien Tech Used (0) 0 Bonus (308) 308 TOTAL SCORE: 3988 Bonus ------- High Alert Combat Kills 8 Aligned with FarCom 300 Cogmind --------- Core Integrity 0/550 Matter 86/300 Energy 73/140 System Corruption 0% Temperature Cool (11) Movement Treading (152) Location -8/Materials Parts ------- > --- POWER (1) -------- Light Deuterium Engine > --- PROPULSION (2) --- Improved Treads Advanced Treads > --- UTILITY (6) ------ High-capacity Storage Unit Seismic Analyzer > --- WEAPON (2) ------- (None) > --- INVENTORY (12) --- Airjet Humpback Cloak of Protection Peak State ------------ > --- POWER ------------ Ion Engine > --- PROPULSION ------- Aluminum Leg Titanium Leg > --- UTILITY ---------- High-capacity Storage Unit Signal Interpreter Advanced Terrain Scanner Seismic Analyzer Cloak of Protection Improved Light Armor Plating > --- WEAPON ----------- Heavy EM Pulse Gun Heavy Assault Rifle > --- INVENTORY -------- Light Ion Engine Fission Core Improved Treads Advanced Treads Aluminum Leg Humpback Shield Generator EM Shotgun Rocket Launcher [Rating: 28] Favorites ----------- Power Light Ion Engine Engine Light Ion Engine Propulsion Aluminum Leg Treads Advanced Treads Leg Aluminum Leg Hover Unit Combat Airjet Utility Improved Light Armor Plating Device Advanced Terrain Scanner Storage High-capacity Storage Unit Processor Seismic Analyzer Protection Improved Light Armor Plating Weapon EM Shotgun Energy Gun EM Shotgun Ballistic Gun Heavy Assault Rifle Ballistic Cannon Flak Cannon Launcher Rocket Launcher Build | -11 -10 -10 -10 -9 -8 ------- Run | Scr Mat Min Exi Min Mat Slots Evolved 4 | . . . . . 4 Power . | . . . . . . Propulsion . | . . . . . . Utility 4 | . . . . . 4 Weapon . | . . . . . . Parts Attached 47 | 7 . 10 4 . 26 Power 6 | 1 . 2 . . 3 Engine 6 | 1 . 2 . . 3 Core . | . . . . . . Reactor . | . . . . . . Propulsion 9 | 2 . 2 1 . 4 Treads 2 | . . . . . 2 Leg 6 | 2 . 1 1 . 2 Wheel . | . . . . . . Hover 1 | . . 1 . . . Flight . | . . . . . . Utility 15 | 2 . 2 3 . 8 Device 7 | 1 . 1 . . 5 Storage 3 | 1 . . 2 . . Processor 3 | . . . . . 3 Hackware . | . . . . . . Protection 2 | . . 1 1 . . Artifact . | . . . . . . Weapon 17 | 2 . 4 . . 11 Energy Gun 7 | 1 . 4 . . 2 Energy Cannon . | . . . . . . Ballistic Gun 6 | 1 . . . . 5 Ballistic Cannon 1 | . . . . . 1 Launcher 3 | . . . . . 3 Special Weapon . | . . . . . . Impact Weapon . | . . . . . . Slashing Weapon . | . . . . . . Piercing Weapon . | . . . . . . Special Melee Weapon . | . . . . . . Unidentified Prototypes . | . . . . . . Parts Lost 26 | . . 8 . . 18 Power 4 | . . 2 . . 2 Propulsion 5 | . . 2 . . 3 Utility 5 | . . 1 . . 4 Weapon 12 | . . 3 . . 9 Highest Loss Streak 11 | . . 5 . . 11 Average Slot Usage (%) 91 | . 100 92 92 100 85 Engine 11 | . 14 13 14 14 8 Leg 19 | . 28 20 14 28 16 Hover 4 | . . 5 13 . . Device 7 | . 14 7 . . 12 Storage 12 | . 14 14 14 14 9 Processor 6 | . . . . . 17 Protection 6 | . . 5 6 14 5 Energy Gun 17 | . 14 16 28 28 8 Ballistic Gun 5 | . 14 6 . . 7 Naked Turns . | . . . . . . Heaviest Build 89 | 14 14 16 89 44 48 Greatest Support 45 | 20 20 22 22 20 45 Greatest Overweight (x) 11 | . . 1 4 2 11 Average Overweight (x) . | . . . . 2 1 Largest Inventory Capacity 24 | 6 6 6 24 12 12 Average Capacity 10 | 5 6 6 15 12 12 Most Carried 14 | 3 6 6 14 12 12 Average Carried 8 | . 1 5 9 11 11 Final Capacity 12 | 6 6 6 12 12 12 Final Carried 12 | . 6 5 10 12 4 Class Distribution -------------------- 33% | Mutant 30% | Scavenger-Mutant 24% | Scavenger-Skirmisher 9% | Hauler-Mutant Dominant Class ---------------- Mutant | -10/Materials Mutant | -10/Mines Scavenger-Mutant | -10/Exiles Scavenger-Mutant | -9/Mines Scavenger-Skirmisher | -8/Materials Resources | -11 -10 -10 -10 -9 -8 ----------- Run | Scr Mat Min Exi Min Mat Matter Collected 775 | 280 29 144 . 40 282 Remotely . | . . . . . . Salvage Created 1521 | 86 101 376 . 109 849 Parts 100 | 4 8 9 . 15 64 Haulers Intercepted . | . . . . . . Recyclers Shooed 2 | . . . . 1 1 Parts Field Recycled . | . . . . . . Retrieved Matter . | . . . . . . Parts Self-Destructed . | . . . . . . Prevented . | . . . . . . Kills | -11 -10 -10 -10 -9 -8 ------- Run | Scr Mat Min Exi Min Mat Combat Hostiles Destroyed 36 | . 2 12 . 3 19 Guns 25 | . 2 12 . 3 8 Cannons 1 | . . . . . 1 AOE 10 | . . . . . 10 Classes Destroyed 10 | 2 2 1 . 2 3 Worker 6 | . . . . 1 5 Builder 2 | . . . . . 2 Tunneler 3 | 1 . . . 2 . Recycler 5 | 1 . . . . 4 Operator 1 | . 1 . . . . Watcher 2 | . . . . . 2 Swarmer 15 | . . . . 3 12 Grunt 11 | . 2 6 . . 3 Sentry 4 | . . . . . 4 Assembled 6 | . . 6 . . . Best Kill Streak 10 | 2 3 4 . 4 10 Combat Bots Only 7 | . 2 4 . 3 7 Max Kills in Single Turn 4 | 1 1 1 . 1 4 Gunslinging . | . . . . . . Exploded 3 | . . . . . 3 Melee . | . . . . . . Uniques/NPCs Destroyed . | . . . . . . Combat | -11 -10 -10 -10 -9 -8 -------- Run | Scr Mat Min Exi Min Mat Damage Taken 2650 | . 55 700 . 94 1801 Core 720 | . 10 128 . 24 558 Absorbed by Shields . | . . . . . . Core Remaining (%) 67 | 100 . . . 35 . Volleys Fired 153 | 4 9 41 . 16 83 Largest 2 | 2 2 2 . 2 2 Hottest 110 | 60 60 90 . 110 110 Shots Fired 241 | 8 18 60 . 32 123 Gun 226 | 8 18 60 . 32 108 Cannon 5 | . . . . . 5 Launcher 10 | . . . . . 10 Special . | . . . . . . Kinetic 101 | 4 9 18 . . 70 Thermal 37 | . . . . 16 21 Explosive 10 | . . . . . 10 Electromagnetic 93 | 4 9 42 . 16 22 Robot Hit Streak 19 | 7 9 11 . 7 19 Robot Miss Streak 4 | . 1 3 . 4 4 Penetration Max . | . . . . . . Secondary Targets 2 | . . 1 . 1 . Max Gunslinging Chain 1 | . . 1 . 1 . Shots Hit Robots 166 | 7 13 47 . 18 81 Core Hits 94 | 3 5 32 . 10 44 Critical Hits 3 | . 1 1 . . 1 Critical Kills 2 | . 1 1 . . . Critical Parts Destroyed 1 | . . . . . 1 Melee Attacks . | . . . . . . Impact . | . . . . . . Slashing . | . . . . . . Piercing . | . . . . . . Sneak Attacks . | . . . . . . Combat Hostiles . | . . . . . . Follow-up Attacks . | . . . . . . Damage Inflicted 3353 | 91 156 683 . 265 2158 Guns 2222 | 91 156 633 . 233 1109 Cannons 34 | . . . . . 34 Explosions 1097 | . . 50 . 32 1015 Melee . | . . . . . . Ramming . | . . . . . . Kinetic 983 | 48 77 174 . . 684 Thermal 516 | . . 50 . 111 355 Explosive 846 | . . . . . 846 Electromagnetic 1008 | 43 79 459 . 154 273 Impact . | . . . . . . Slashing . | . . . . . . Piercing . | . . . . . . Highest Corruption . | . . . . . . Average Corruption . | . . . . . . Corruption Purged . | . . . . . . Overload Shots . | . . . . . . Overflow Damage 54 | . . 5 . 9 40 Projectiles . | . . . . . . Explosions 54 | . . 5 . 9 40 Melee . | . . . . . . Knockbacks . | . . . . . . Impact . | . . . . . . Kinetic . | . . . . . . Secondary . | . . . . . . Self-Inflicted Damage 203 | . . 31 . . 172 Shots 4 | . . 1 . . 3 Rammed . | . . . . . . Targets Rammed . | . . . . . . Kicked . | . . . . . . Crushed . | . . . . . . Highest Temperature 308 | . 30 127 . 308 238 Average Temperature 73 | . 18 52 . 105 60 Received Heat Transfer 850 | . 30 208 . . 612 Siege Activations . | . . . . . . Robots Corrupted . | . . . . . . Combat Hostiles . | . . . . . . Parts Fried 4 | . . 1 . 1 2 Impact Corruptions . | . . . . . . Robots Melted . | . . . . . . Combat Hostiles . | . . . . . . Parts Melted . | . . . . . . Heat Transferred 879 | . . 50 . 235 594 Parts Sabotaged . | . . . . . . Parts Stolen . | . . . . . . Parts Stripped . | . . . . . . Power Chain Reactions 4 | . . 1 . 2 1 Missiles Intercepted . | . . . . . . Alert | -11 -10 -10 -10 -9 -8 ------- Run | Scr Mat Min Exi Min Mat Peak Influence 490 | 10 75 133 . 85 490 Average Influence 102 | 3 39 84 . 22 164 Maximum Alert Level 2 | . . . . . 2 Low Security (%) 83 | 100 100 100 . 100 63 Level 1 13 | . . . . . 31 Level 2 2 | . . . . . 4 Level 3 . | . . . . . . Level 4 . | . . . . . . Level 5 . | . . . . . . High Security . | . . . . . . Max Security . | . . . . . . Squads Dispatched 5 | . 1 . . . 4 Investigation 1 | . . . . . 1 Extermination . | . . . . . . Reinforcement 3 | . 1 . . . 2 Assault . | . . . . . . Garrison 1 | . . . . . 1 Intercept . | . . . . . . Construction Impeded . | . . . . . . Haulers Reinforced . | . . . . . . Stealth | -11 -10 -10 -10 -9 -8 --------- Run | Scr Mat Min Exi Min Mat Distress Signals 1 | . . . . . 1 Communications Jammed . | . . . . . . Distress Signals . | . . . . . . Times Spotted 62 | . 5 14 . 3 40 Peak Tracking Total 6 | . 2 4 . 3 6 Tactical Retreats 4 | . . 3 . . 1 Traps | -11 -10 -10 -10 -9 -8 ------- Run | Scr Mat Min Exi Min Mat Traps Triggered 3 | . . . . . 3 Indirectly . | . . . . . . Trap Hack Attempts . | . . . . . . Triggered . | . . . . . . Disarmed . | . . . . . . Reprogrammed . | . . . . . . Reused . | . . . . . . Traps Extracted . | . . . . . . Installed . | . . . . . . Triggered . | . . . . . . Exploded 1 | . . . . . 1 Machines | -11 -10 -10 -10 -9 -8 ---------- Run | Scr Mat Min Exi Min Mat Machines Disabled 5 | . . . . . 5 Max in Single Turn 2 | . . . . . 2 Machines Sabotaged . | . . . . . . Garrisons Compromised . | . . . . . . Overloaded Fab Kills . | . . . . . . Fab Network Shutdowns . | . . . . . . Hacking | -11 -10 -10 -10 -9 -8 --------- Run | Scr Mat Min Exi Min Mat Machines Accessed 2 | . 1 . 1 . . Terminals 1 | . 1 . . . . Fabricators . | . . . . . . Repair Stations . | . . . . . . Recycling Units . | . . . . . . Scanalyzers . | . . . . . . Garrison Access . | . . . . . . Total Hacks 3 | . 2 . 1 . . Successful 2 | . 1 . 1 . . Failed 1 | . 1 . . . . Catastrophic . | . . . . . . Database Lockouts . | . . . . . . Manual 1 | . . . 1 . . Terminals 2 | . 2 . . . . Fabricators . | . . . . . . Repair Stations . | . . . . . . Recycling Units . | . . . . . . Scanalyzers . | . . . . . . Garrison Access . | . . . . . . Terminal Hacks 2 | . 1 . 1 . . Zone Layout 1 | . 1 . . . . EX-Prototype ID Bank 1 | . . . 1 . . Fabricator Hacks . | . . . . . . Repair Station Hacks . | . . . . . . Recycling Unit Hacks . | . . . . . . Scanalyzer . | . . . . . . Garrison Access Hacks . | . . . . . . Unauthorized Hacks . | . . . . . . Terminals . | . . . . . . Fabricators . | . . . . . . Repair Stations . | . . . . . . Recycling Units . | . . . . . . Scanalyzers . | . . . . . . Garrison Access . | . . . . . . Data Cores Recovered 1 | . 1 . . . . Used . | . . . . . . Hacking Detections 1 | . 1 . . . . Full Trace Events . | . . . . . . Feedback Events . | . . . . . . Feedback Blocked . | . . . . . . Robot Schematics Acquired . | . . . . . . Robots Built . | . . . . . . Matter . | . . . . . . Time . | . . . . . . Total Robot Build Rating . | . . . . . . Part Schematics Acquired . | . . . . . . Parts Built . | . . . . . . Matter . | . . . . . . Time . | . . . . . . Total Part Build Rating . | . . . . . . Parts Repaired . | . . . . . . Time . | . . . . . . Parts Recycled . | . . . . . . Recycled Matter . | . . . . . . Retrieved Matter . | . . . . . . Retrieved Components . | . . . . . . Parts Scanalyzed . | . . . . . . Part Schematics Acquired . | . . . . . . Parts Damaged . | . . . . . . Bothacking | -11 -10 -10 -10 -9 -8 ------------ Run | Scr Mat Min Exi Min Mat Used RIF Installer . | . . . . . . Robots Hacked . | . . . . . . Non-combat . | . . . . . . Combat . | . . . . . . Robot Hacks Applied . | . . . . . . Relay Couplers Released . | . . . . . . Robots Rewired . | . . . . . . Allies Hacked . | . . . . . . Hacks Repelled . | . . . . . . Allies | -11 -10 -10 -10 -9 -8 -------- Run | Scr Mat Min Exi Min Mat Total Allies . | . . . . . . Largest Group . | . . . . . . Highest-Rated Group . | . . . . . . Highest-Rated Ally . | . . . . . . Total Orders . | . . . . . . Ally Attacks . | . . . . . . Total Damage . | . . . . . . Kills . | . . . . . . Allies Corrupted . | . . . . . . Allies Melted . | . . . . . . Intel | -11 -10 -10 -10 -9 -8 ------- Run | Scr Mat Min Exi Min Mat Robot Analysis Total . | . . . . . . Derelict Logs Recovered 1 | . . 1 . . . Drone Launches . | . . . . . . Drone Recoveries . | . . . . . . Exploration | -11 -10 -10 -10 -9 -8 ------------- Run | Scr Mat Min Exi Min Mat Turns Passed 2467 | 82 169 540 498 315 863 Spaces Moved 1269 | 55 107 362 304 143 298 Core 15 | 13 . . . . 2 Treads 2 | . . . . . 2 Legs 758 | 42 107 171 1 143 294 Wheels . | . . . . . . Hover 494 | . . 191 303 . . Flight . | . . . . . . Fastest Speed 50 | 50 120 80 90 180 152 Average Speed 141 | 103 120 104 156 180 165 Slowest Speed 600 | 120 120 150 370 180 600 Overloaded Moves . | . . . . . . Propulsion Burnouts . | . . . . . . Robots Hopped . | . . . . . . Cave-ins Triggered . | . . . . . . Exploration Rate (%) 41 | 4 21 70 71 44 38 Regions Visited 5 Branch Regions 3 Pre-discovered Areas . | . . . . . . Known Exits Taken . | . . . . . . Unknown Exits Taken 5 | 1 1 1 1 1 . Scrap Searched 5 | . . 3 . 2 . Spaces Dug 11 | . . . . . 11 Terrain Destroyed 101 | . . 9 . 6 86 Melee . | . . . . . . Projectile . | . . . . . . AOE 101 | . . 9 . 6 86 Actions | -11 -10 -10 -10 -9 -8 --------- Run | Scr Mat Min Exi Min Mat Total 1704 | 71 130 460 327 170 546 Wait 174 | 1 7 42 . 3 121 Move 1264 | 54 106 361 303 142 298 Hop . | . . . . . . Pick Up 48 | 5 7 4 16 6 10 Fast Attach 15 | 2 . 4 2 . 7 Attach 25 | 5 . 5 1 . 14 Detach 2 | . . 1 . . 1 Swap 7 | . . 1 1 . 5 Drop 16 | . 1 1 4 3 7 Fire 153 | 4 9 41 . 16 83 Melee . | . . . . . . Ram . | . . . . . . Kick . | . . . . . . Crush . | . . . . . . Escape Stasis . | . . . . . . Rewire . | . . . . . . Trap . | . . . . . . Miscellaneous . | . . . . . . Route ------- -11/Scrapyard -10/Materials -10/Mines (discovered 2 exits: [*Mat] / *Exi) -10/Exiles -9/Mines -8/Materials History --------- Turn | Location | Event 2 | -11/Scrapyard | Discovered new exit (range 16) 83 | -11/Scrapyard | Entered Materials 100 | -10/Materials | Discovered new exit (range 13) 252 | -10/Materials | Entered Mines 302 | -10/Mines | Build established: Mutant 444 | -10/Mines | Assembled infested the area 528 | -10/Mines | Discovered new exit (range 9) 571 | -10/Mines | Lost 5 parts (1p1n3w) 698 | -10/Mines | Core integrity fell below 50% 719 | -10/Mines | Learned Materials emergency access door positions 736 | -10/Mines | Deemed a non-threat by the Exiles lab entrance 737 | -10/Mines | Discovered new exit (range 5) 792 | -10/Mines | Entered Exiles 816 | -10/Exiles | Met 8R-AWN 831 | -10/Exiles | Met EX-HEX 857 | -10/Exiles | Met EX-BIN 868 | -10/Exiles | Aligned with FarCom system 869 | -10/Exiles | Given EX-Vault access code 892 | -10/Exiles | Opened EX-Vault 898 | -10/Exiles | Found Cloak of Protection 918 | -10/Exiles | Warned to stay clear of 0b10 Research branches 944 | -10/Exiles | Met EX-DEC 1272 | -10/Exiles | Discovered new exit (range 12) 1290 | -10/Exiles | Left Exiles lab with Cloak of Protection 1290 | -10/Exiles | Entered Mines 1523 | -9/Mines | Build established: Scavenger-Mutant 1590 | -9/Mines | Discovered new exit (range 10) 1605 | -9/Mines | Entered Materials 1605 | -8/Materials | Evolved 4 slots: Utility x4 1910 | -8/Materials | Build established: Scavenger-Skirmisher 2118 | -8/Materials | Lost 3 parts (1n1u1w) 2371 | -8/Materials | Garrison activated, responded to threat 2410 | -8/Materials | Destroyed 7 combat bots 2449 | -8/Materials | Core integrity fell below 50% 2459 | -8/Materials | Core integrity fell below 20% 2468 | -8/Materials | Destroyed by G-47 Trooper with Particle Gun Last Messages --------------- 02450_ O-16 Technician locks terminal. 02450_ U-05 Engineer lays Concrete. 02451_ EM Shotgun destroyed. 02451_ U-05 Engineer lays Concrete. 02451_ Dropped Rigged Fission Core. 02454_ Shield Generator destroyed. 02457_ Structural Scanner destroyed. 02458_ Triggered Blade Trap. 02458_ Massive razor-sharp blades shoot up from within the floor. 02458_ Signal Interpreter severed. 02458_ Adv. Targeting Computer severed. 02458_ Hadron Collector disabled. 02460_ Rigged Fission Core explodes. 02460_ G-47 Trooper destroyed. 02460_ G-50 Soldier destroyed. 02460_ U-05 Engineer builds a Wall. 02462_ K-01 Serf collects debris. 02462_ U-05 Engineer lays Concrete. 02462_ U-05 Engineer builds a Wall. 02463_ U-05 Engineer lays Concrete. Map ----- +----------------------------------------------------+ | ???????###??##?##?############# * #* ## | | ?????#??##?####?############### ### ####% #? | | ???????????####?#########################% ### | | ?????#?# ?? # % # | | ??????#?? ? # ! + | | ???##???? # %! = # | | ???????? ? + ##########+################ # | | ?????#?? ??][ # ####??## ############# # | | #????#?? # !!######## """ ##??######### # | | ???#???? %# ! # """ ###### ? # | | ?????#?#?? ? *=#! # """ ###??# T?# | | ??????############ =# ! # """ ######? ? ? ? | | ##???? # # # ###### ?# | | ?#????"" " # %+ = ##########?## ?? # ? | | ???#??"S # [ # ##########?#? ??? #?? | | ?????"" ## =# # ###################? ? | | ???? ## ###?### ?###?##? | | ??#?######## # + s ??? | | ?#?#??# ###??##s s? ? ???? | | ??????# #####?# ?? ? ?? | | #?#???# ###?###? ????? | | ??#?#?# ####### [ %= #?####? ? ???##??? | | ??????# ? ???#??##=* "# ######?##?#?#????? | | ??#???#?????? #%%=;" ####??#?###?##???? | | #????#????#?? ?? #!= ############????####?????? | | ??????# ???????""#= @ ^ ! [[#??##???????? | | ??????? ???? ???"# [[#???###?????? | | ???#??? ?#? ?"?"# ! """ | [[#??#????????? | | ????????? ???????# ^ """ [[##?#????????? | | ?????????????????# !! ^ "" !!#?#?????????? | | ?#????#???? ???"# !! g """ ? ??????????????? | | ???????? ????"?"# !^ o ??#?????????????? | | ??????????? ?? ??#! / ????????????????? | | ??? ????? ???????# gg = ! [ ???????????????? | | ????????????? ? ?# g%/ ???????????????? | | ???????????? ? # // [ ???????????????? | | ?????????????#??###" "#"T"##T### ???????????????? | | ??????????????????#"G"#"""#?##?# ????????????????? | | ?????????????????#? "????????????????????????????? | | ???????????#????????????#????????????????????????? | | ??????????????????##?????????????????????????????? | | ?????????????#?#?????????????????????????????????? | | ?????????????????????????????????????????????????? | | ?????????????????????????????????????????????????? | | ?????????????????????????????????????????????????? | | ?????????????????????????????????????????????????? | | ?????????????????????????????????????????????????? | | ?????????????????????????????????????????????????? | | ?????????????????????????????????????????????????? | | ?????????????????????????????????????????????????? | +----------------------------------------------------+ Best States ------------- Heat Dissipation 35 Energy Generation 12 Energy Capacity 265 Matter Stores 300 Matter Capacity 300 Sight Range 16 Terrain Scan Range 20 Terrain Scan Density 60 Armor Coverage 150 Evasion (%) 50 Targeting Accuracy 8 Item Schematics ----------------- None Robot Schematics ------------------ None Fabricated ------------ Nothing Alien Tech Used ----------------- None Achievements -------------- None Challenges ------------ None Game ------ Seed SniperTeslaHammer Manual? 0 Play Time 00:20:47 Cumulative 153.8 hours Start 2020.01.25 @ 13:44:18 End 2020.01.25 @ 14:00:15 Sessions 1 Manual Loads 0 Difficulty Rogue Special Mode None Game No. 215 Rogue 215 Adventurer 0 Explorer 0 Win Type - Total 7 Types 2/1/0/1/0/3/0 Lore% 92 Gallery% 89 Achievement% 70 Wizard Run 0 Options --------- ASCII 0 Keyboard 0 Movement Numpad Keybinds 0 Fullscreen 1 Font 24/Smallcaps Map View 76x50 Tactical HUD 1 Map Filters NONE Filters NONE Steam 1 RUN: 182ec21e-494b-43d5-9234-bf68a4c673d2